[Event "Dutch Internet Championship Final"]
[Site "playchess.com #038132"]
[Date "2011.06.18"]
[Round "1.1"]
[White "Reinderman"]
[Black "Zgorl"]
[Result "1/2-1/2"]
[ECO "B10"]
[WhiteElo "2512"]
[BlackElo "2440"]
[PlyCount "93"]
[EventDate "2011.06.18"]
[EventType "match (blitz)"]
[TimeControl "180+3"]

1. c4 {[%emt 0:00:02]} c6 {[%emt 0:00:02]} 2. e4 {[%emt 0:00:02]} d5 {[%emt 0:
00:02]} 3. exd5 {[%emt 0:00:01]} cxd5 {[%emt 0:00:01]} 4. cxd5 {[%emt 0:00:01]}
Nf6 {[%emt 0:00:01]} 5. Nc3 {[%emt 0:00:02]} g6 {[%emt 0:00:02]} 6. Bc4 {[%emt
0:00:03]} Bg7 {[%emt 0:00:02]} 7. Nge2 {[%emt 0:00:01]} O-O {[%emt 0:00:01]} 8.
O-O {[%emt 0:00:02]} Na6 {[%emt 0:00:03]} 9. d3 {[%emt 0:00:06]} Nc7 {[%emt 0:
00:03]} 10. Nf4 {[%emt 0:00:01]} b6 {[%emt 0:00:02]} 11. a4 {[%emt 0:00:04]}
Bb7 {[%emt 0:00:02]} 12. Qb3 {[%emt 0:00:01]} Rb8 {[%emt 0:00:13]} 13. Re1 {
[%emt 0:00:03]} Ba8 {[%emt 0:00:03]} 14. Bd2 {[%emt 0:00:23]} a6 {[%emt 0:00:
06]} 15. d4 {[%emt 0:00:02]} b5 {[%emt 0:00:05]} 16. axb5 {[%emt 0:00:01]} axb5
{[%emt 0:00:00]} 17. Bf1 {[%emt 0:00:02]} b4 {[%emt 0:00:06]} 18. Na4 {[%emt 0:
00:05]} Ncxd5 {[%emt 0:00:01]} 19. Rad1 {[%emt 0:00:09]} Nxf4 {[%emt 0:00:20]}
20. Bxf4 {[%emt 0:00:02]} Bd5 {[%emt 0:00:02]} 21. Qe3 {[%emt 0:00:05]} Ra8 {
[%emt 0:00:07]} 22. Nc5 {[%emt 0:00:01]} e6 {[%emt 0:00:03]} 23. h3 {[%emt 0:
00:06]} Qb6 {[%emt 0:00:18]} 24. Bh6 {[%emt 0:00:03]} Bxh6 {[%emt 0:00:06]} 25.
Qxh6 {[%emt 0:00:01]} Rfd8 {[%emt 0:00:02]} 26. Qf4 {[%emt 0:00:10]} Nd7 {
[%emt 0:00:15]} 27. Nd3 {[%emt 0:00:02]} Qb8 {[%emt 0:00:29]} 28. Qh6 {[%emt 0:
00:05]} Bc4 {[%emt 0:00:05]} 29. h4 {[%emt 0:00:08]} Ra5 {[%emt 0:00:11]} 30.
Qe3 {[%emt 0:00:11]} Bxd3 {[%emt 0:00:05]} 31. Bxd3 {[%emt 0:00:02]} Nb6 {
[%emt 0:00:04]} 32. Be4 {[%emt 0:00:08]} Nd5 {[%emt 0:00:11]} 33. Qf3 {[%emt 0:
00:02]} Ra2 {[%emt 0:00:18]} 34. Re2 {[%emt 0:00:05]} h5 {[%emt 0:00:13]} 35.
g3 {[%emt 0:00:06]} Kg7 {[%emt 0:00:07]} 36. Bd3 {[%emt 0:00:02]} Nf6 {[%emt 0:
00:03]} 37. Bc4 {[%emt 0:00:03]} Ra7 {[%emt 0:00:02]} 38. Qb3 {[%emt 0:00:16]}
Rad7 {[%emt 0:00:13]} 39. Red2 {[%emt 0:00:01]} Qb6 {[%emt 0:00:04]} 40. Qe3 {
[%emt 0:00:02]} Ng4 {[%emt 0:00:04]} 41. Qe4 {[%emt 0:00:05]} Nf6 {[%emt 0:00:
12]} 42. Qe5 {[%emt 0:00:02]} Qd6 {[%emt 0:00:03]} 43. Qe3 {[%emt 0:00:05]} Ng4
{[%emt 0:00:05]} 44. Qe2 {[%emt 0:00:02]} Nf6 {[%emt 0:00:03]} 45. Qe3 {[%emt
0:00:02]} Ng4 {[%emt 0:00:01]} 46. Qe2 {[%emt 0:00:01]} Nf6 {[%emt 0:00:03]}
47. Qe3 {[%emt 0:00:01] (Lag: Av=0.34s, max=6.1s)} 1/2-1/2

[Event "Dutch Internet Championship Final"]
[Site "playchess.com #038132"]
[Date "2011.06.18"]
[Round "1.1"]
[White "Kemps"]
[Black "Christov"]
[Result "1/2-1/2"]
[ECO "E67"]
[WhiteElo "2400"]
[BlackElo "2472"]
[PlyCount "111"]
[EventDate "2011.06.18"]
[EventType "match (blitz)"]
[TimeControl "180+3"]

1. Nf3 {[%emt 0:00:01]} Nf6 {[%emt 0:00:02]} 2. g3 {[%emt 0:00:01]} g6 {[%emt
0:00:02]} 3. Bg2 {[%emt 0:00:01]} Bg7 {[%emt 0:00:00]} 4. O-O {[%emt 0:00:01]}
O-O {[%emt 0:00:00]} 5. d4 {[%emt 0:00:01]} d6 {[%emt 0:00:01]} 6. c4 {[%emt 0:
00:01]} Nbd7 {[%emt 0:00:01]} 7. Nc3 {[%emt 0:00:07]} e5 {[%emt 0:00:01]} 8.
Qc2 {[%emt 0:00:02]} Re8 {[%emt 0:00:05]} 9. dxe5 {[%emt 0:00:03]} dxe5 {[%emt
0:00:05]} 10. Rd1 {[%emt 0:00:01]} c6 {[%emt 0:00:01]} 11. Ng5 {[%emt 0:00:07]}
Qc7 {[%emt 0:00:11]} 12. Nge4 {[%emt 0:00:03]} Nxe4 {[%emt 0:00:11]} 13. Nxe4 {
[%emt 0:00:01]} Nf8 {[%emt 0:00:20]} 14. Nd6 {[%emt 0:00:04]} Rd8 {[%emt 0:00:
01]} 15. Nxc8 {[%emt 0:00:17]} Raxc8 {[%emt 0:00:02]} 16. Bg5 {[%emt 0:00:01]}
Rxd1+ {[%emt 0:00:03]} 17. Rxd1 {[%emt 0:00:01]} Ne6 {[%emt 0:00:00]} 18. Bc1 {
[%emt 0:00:23]} Nd4 {[%emt 0:00:13]} 19. Qd2 {[%emt 0:00:06]} Rd8 {[%emt 0:00:
05]} 20. Kf1 {[%emt 0:00:01]} Bf8 {[%emt 0:00:23]} 21. e3 {[%emt 0:00:08]} Ne6
{[%emt 0:00:02]} 22. Qc2 {[%emt 0:00:01]} Rxd1+ {[%emt 0:00:02]} 23. Qxd1 {
[%emt 0:00:01]} Qa5 {[%emt 0:00:01]} 24. a3 {[%emt 0:00:03]} Qa6 {[%emt 0:00:
10]} 25. b3 {[%emt 0:00:06]} Bxa3 {[%emt 0:00:03]} 26. Bd2 {[%emt 0:00:06]} Qb6
{[%emt 0:00:04]} 27. Bc3 {[%emt 0:00:02]} Qc7 {[%emt 0:00:14]} 28. Bh3 {[%emt
0:00:05]} Ng5 {[%emt 0:00:10]} 29. Bg2 {[%emt 0:00:03]} Bd6 {[%emt 0:00:07]}
30. b4 {[%emt 0:00:08]} Qe7 {[%emt 0:00:05]} 31. c5 {[%emt 0:00:08]} Bc7 {
[%emt 0:00:01]} 32. h4 {[%emt 0:00:10]} Ne6 {[%emt 0:00:03]} 33. h5 {[%emt 0:
00:01]} a5 {[%emt 0:00:03]} 34. bxa5 {[%emt 0:00:10]} Qxc5 {[%emt 0:00:02]} 35.
Qa1 {[%emt 0:00:01]} gxh5 {[%emt 0:00:07]} 36. Kg1 {[%emt 0:00:16]} Ng5 {[%emt
0:00:34]} 37. Qb2 {[%emt 0:00:14]} Bxa5 {[%emt 0:00:04]} 38. Bxe5 {[%emt 0:00:
22]} Ne6 {[%emt 0:00:19]} 39. Bf6 {[%emt 0:00:19]} b5 {[%emt 0:00:07]} 40. Qa2
{[%emt 0:00:13]} b4 {[%emt 0:00:09]} 41. Bxc6 {[%emt 0:00:28]} b3 {[%emt 0:00:
19]} 42. Qa4 {[%emt 0:00:01]} Bc3 {[%emt 0:00:14]} 43. Bxc3 {[%emt 0:00:36]}
Qxc3 {[%emt 0:00:00]} 44. Be4 {[%emt 0:00:01]} Nc5 {[%emt 0:00:01]} 45. Qe8+ {
[%emt 0:00:01]} Kg7 {[%emt 0:00:01]} 46. Bf5 {[%emt 0:00:02]} b2 {[%emt 0:00:
04]} 47. Qb5 {[%emt 0:00:01]} Ne6 {[%emt 0:00:06]} 48. Kg2 {[%emt 0:00:01]} Qf6
{[%emt 0:00:04]} 49. Bb1 {[%emt 0:00:03]} h4 {[%emt 0:00:02]} 50. Qh5 {[%emt 0:
00:03]} hxg3 {[%emt 0:00:03]} 51. Qxh7+ {[%emt 0:00:02]} Kf8 {[%emt 0:00:00]}
52. Kxg3 {[%emt 0:00:01]} Ng5 {[%emt 0:00:00]} 53. Qf5 {[%emt 0:00:04]} Qd6+ {
[%emt 0:00:04]} 54. f4 {[%emt 0:00:03]} Ne6 {[%emt 0:00:03]} 55. Qc2 {[%emt 0:
00:02]} Qb6 {[%emt 0:00:02] Kemps offers a draw} 56. Kf3 {[%emt 0:00:03] (Lag:
Av=0.35s, max=2.9s)} 1/2-1/2

[Event "Dutch Internet Championship Final"]
[Site "playchess.com #038132"]
[Date "2011.06.18"]
[Round "1.1"]
[White "Snorrebaard"]
[Black "kingloek"]
[Result "0-1"]
[ECO "B81"]
[WhiteElo "1855"]
[BlackElo "2907"]
[PlyCount "46"]
[EventDate "2011.06.18"]
[EventType "match (blitz)"]
[TimeControl "180+3"]

1. e4 {[%emt 0:00:02]} c5 {[%emt 0:00:04]} 2. Nf3 {[%emt 0:00:01]} e6 {[%emt 0:
00:01]} 3. d4 {[%emt 0:00:03]} cxd4 {[%emt 0:00:01]} 4. Nxd4 {[%emt 0:00:00]}
Nf6 {[%emt 0:00:01]} 5. Nc3 {[%emt 0:00:05]} d6 {[%emt 0:00:01]} 6. g4 {[%emt
0:00:09]} h6 {[%emt 0:00:03]} 7. h4 {[%emt 0:00:04]} Nc6 {[%emt 0:00:02]} 8.
Rg1 {[%emt 0:00:07]} h5 {[%emt 0:00:01]} 9. g5 {[%emt 0:01:06]} Ng4 {[%emt 0:
00:02]} 10. Be2 {[%emt 0:00:07]} Qb6 {[%emt 0:00:13]} 11. Bxg4 {[%emt 0:00:26]}
hxg4 {[%emt 0:00:02]} 12. Nxc6 {[%emt 0:00:15]} bxc6 {[%emt 0:00:00]} 13. g6 {
[%emt 0:00:16]} f6 {[%emt 0:00:21]} 14. Qxg4 {[%emt 0:00:36]} d5 {[%emt 0:00:
02]} 15. Qg3 {[%emt 0:00:14]} d4 {[%emt 0:00:13]} 16. Ne2 {[%emt 0:00:10]} Ba6
{[%emt 0:00:29] '} 17. Qb3 {[%emt 0:00:03]} c5 {[%emt 0:00:45]} 18. Rh1 {[%emt
0:00:01]} Qc6 {[%emt 0:00:08]} 19. f3 {[%emt 0:00:02]} e5 {[%emt 0:00:10]} 20.
Qf7+ {[%emt 0:00:04]} Kd8 {[%emt 0:00:02]} 21. Bd2 {[%emt 0:00:00]} Qd7 {[%emt
0:00:24]} 22. Ba5+ {[%emt 0:00:02]} Kc8 {[%emt 0:00:01]} 23. Qb3 {[%emt 0:00:
10]} c4 {[%emt 0:00:10] Time  (Lag: Av=0.49s, max=3.4s) .} 0-1

[Event "Dutch Internet Championship Final"]
[Site "playchess.com #038132"]
[Date "2011.06.18"]
[Round "1.1"]
[White "Bolwerk"]
[Black "Jan Smeets"]
[Result "0-1"]
[ECO "B80"]
[WhiteElo "2280"]
[BlackElo "2845"]
[PlyCount "62"]
[EventDate "2011.06.18"]
[EventType "match (blitz)"]
[TimeControl "180+3"]

1. e4 {[%emt 0:00:01]} e6 {[%emt 0:00:01]} 2. d4 {[%emt 0:00:01]} c5 {[%emt 0:
00:01]} 3. Nf3 {[%emt 0:00:02]} cxd4 {[%emt 0:00:01]} 4. Nxd4 {[%emt 0:00:01]}
Nf6 {[%emt 0:00:05]} 5. Nc3 {[%emt 0:00:01]} d6 {[%emt 0:00:02]} 6. g3 {[%emt
0:00:01]} a6 {[%emt 0:00:18]} 7. a4 {[%emt 0:00:02]} Bd7 {[%emt 0:00:03]} 8.
Bg2 {[%emt 0:00:01]} Nc6 {[%emt 0:00:01]} 9. Nb3 {[%emt 0:00:02]} b6 {[%emt 0:
00:12]} 10. O-O {[%emt 0:00:02]} Be7 {[%emt 0:00:02]} 11. f4 {[%emt 0:00:01]}
O-O {[%emt 0:00:30]} 12. g4 {[%emt 0:00:01]} Be8 {[%emt 0:00:42]} 13. g5 {
[%emt 0:00:03]} Nd7 {[%emt 0:00:01]} 14. Qh5 {[%emt 0:00:02]} Rc8 {[%emt 0:00:
23]} 15. Rf3 {[%emt 0:00:08]} f5 {[%emt 0:00:04]} 16. Qh4 {[%emt 0:00:15]} Bg6
{[%emt 0:00:06]} 17. Rh3 {[%emt 0:00:18]} Nb4 {[%emt 0:00:32]} 18. Nd4 {[%emt
0:00:06]} Nc5 {[%emt 0:00:10]} 19. exf5 {[%emt 0:00:13]} Rxf5 {[%emt 0:00:01]}
20. Nxf5 {[%emt 0:00:31]} Bxf5 {[%emt 0:00:02]} 21. Rf3 {[%emt 0:00:20]} Nxc2 {
[%emt 0:00:02]} 22. Ra2 {[%emt 0:00:07]} Nb3 {[%emt 0:00:16]} 23. Be3 {[%emt 0:
00:14]} Nxe3 {[%emt 0:00:01]} 24. Rxe3 {[%emt 0:00:01]} d5 {[%emt 0:00:00]} 25.
Ne2 {[%emt 0:00:24]} Bc5 {[%emt 0:00:07]} 26. Qg3 {[%emt 0:00:13]} d4 {[%emt 0:
00:18]} 27. Rd3 {[%emt 0:00:04]} Na5 {[%emt 0:00:15]} 28. b3 {[%emt 0:00:08]}
Nxb3 {[%emt 0:00:03]} 29. Rxb3 {[%emt 0:00:08]} d3+ {[%emt 0:00:01]} 30. Kh1 {
[%emt 0:00:01]} d2 {[%emt 0:00:05]} 31. Nc3 {[%emt 0:00:08]} d1=Q+ {[%emt 0:00:
01] Bolwerk geeft op  (Lag: Av=0.48s, max=0.8s)} 0-1

[Event "Dutch Internet Championship Final"]
[Site "playchess.com #038132"]
[Date "2011.06.18"]
[Round "1.1"]
[White "Zgorl"]
[Black "Reinderman"]
[Result "1-0"]
[ECO "C02"]
[WhiteElo "2443"]
[BlackElo "2509"]
[PlyCount "53"]
[EventDate "2011.06.18"]
[EventType "match (blitz)"]
[TimeControl "180+3"]

1. e4 {[%emt 0:00:02]} e6 {[%emt 0:00:01]} 2. d4 {[%emt 0:00:02]} d5 {[%emt 0:
00:01]} 3. e5 {[%emt 0:00:02]} c5 {[%emt 0:00:01]} 4. c3 {[%emt 0:00:01]} Nc6 {
[%emt 0:00:01]} 5. Nf3 {[%emt 0:00:01]} Nh6 {[%emt 0:00:01]} 6. Bd3 {[%emt 0:
00:04]} f6 {[%emt 0:00:10]} 7. O-O {[%emt 0:00:07]} Nf7 {[%emt 0:00:03]} 8. Re1
{[%emt 0:00:08]} Be7 {[%emt 0:00:09]} 9. exf6 {[%emt 0:00:31]} gxf6 {[%emt 0:
00:02]} 10. Nbd2 {[%emt 0:00:09]} e5 {[%emt 0:00:11]} 11. dxe5 {[%emt 0:00:08]}
fxe5 {[%emt 0:00:01]} 12. Nxe5 {[%emt 0:00:26]} Ncxe5 {[%emt 0:00:06]} 13. Rxe5
{[%emt 0:00:02]} Nxe5 {[%emt 0:00:02]} 14. Qh5+ {[%emt 0:00:03]} Nf7 {[%emt 0:
00:01] Zgorl reconnected.} 15. Nf3 {[%emt 0:00:01]} Qd6 {[%emt 0:00:17]} 16. g3
{[%emt 0:00:21]} Be6 {[%emt 0:00:22]} 17. Bf4 {[%emt 0:00:02]} Qb6 {[%emt 0:00:
03]} 18. Re1 {[%emt 0:00:01]} c4 {[%emt 0:00:20]} 19. Bc2 {[%emt 0:00:15]} Kf8
{[%emt 0:00:14]} 20. Nd4 {[%emt 0:00:04]} Bd7 {[%emt 0:00:03]} 21. Bf5 {[%emt
0:00:22]} Bxf5 {[%emt 0:00:24]} 22. Nxf5 {[%emt 0:00:00]} Re8 {[%emt 0:00:05]}
23. Qf3 {[%emt 0:00:40]} Bg5 {[%emt 0:00:22]} 24. Bd6+ {[%emt 0:00:19]} Nxd6 {
[%emt 0:00:11]} 25. Nxd6+ {[%emt 0:00:02]} Kg7 {[%emt 0:00:03]} 26. Qf7+ {
[%emt 0:00:04]} Kh6 {[%emt 0:00:01]} 27. Nf5# {[%emt 0:00:04] (Lag: Av=0.73s,
max=3.8s)} 1-0

[Event "Dutch Internet Championship Final"]
[Site "playchess.com #038132"]
[Date "2011.06.18"]
[Round "1.1"]
[White "Time To Pretend"]
[Black "Erikerik"]
[Result "0-1"]
[ECO "D20"]
[WhiteElo "2508"]
[BlackElo "2639"]
[PlyCount "68"]
[EventDate "2011.06.18"]
[EventType "match (blitz)"]
[TimeControl "180+3"]

1. d4 {[%emt 0:00:01]} d5 {[%emt 0:00:01]} 2. c4 {[%emt 0:00:01]} dxc4 {[%emt
0:00:01]} 3. e4 {[%emt 0:00:00]} Nf6 {[%emt 0:00:02]} 4. e5 {[%emt 0:00:01]}
Nd5 {[%emt 0:00:01]} 5. Bxc4 {[%emt 0:00:01]} Nb6 {[%emt 0:00:01]} 6. Bb3 {
[%emt 0:00:01]} Nc6 {[%emt 0:00:01]} 7. Be3 {[%emt 0:00:02]} Bf5 {[%emt 0:00:
11]} 8. Nc3 {[%emt 0:00:02]} e6 {[%emt 0:00:09]} 9. Nge2 {[%emt 0:00:01]} Qd7 {
[%emt 0:00:03]} 10. a3 {[%emt 0:00:01]} O-O-O {[%emt 0:00:04]} 11. O-O {[%emt
0:00:01]} h5 {[%emt 0:00:04]} 12. Ng3 {[%emt 0:00:11]} Bg6 {[%emt 0:00:13]} 13.
Nge4 {[%emt 0:00:02]} Kb8 {[%emt 0:00:30]} 14. Rc1 {[%emt 0:00:03]} Nxd4 {
[%emt 0:00:12]} 15. Bxd4 {[%emt 0:00:34]} Qxd4 {[%emt 0:00:03]} 16. Qf3 {[%emt
0:00:02]} Qxe5 {[%emt 0:00:04]} 17. Rfe1 {[%emt 0:00:02]} Be7 {[%emt 0:00:18]}
18. a4 {[%emt 0:00:33]} Rd4 {[%emt 0:00:06]} 19. Nc5 {[%emt 0:00:24]} Qxc5 {
[%emt 0:00:23]} 20. Nb5 {[%emt 0:00:01]} Qb4 {[%emt 0:00:10]} 21. Nxd4 {[%emt
0:00:25]} Qxd4 {[%emt 0:00:06]} 22. a5 {[%emt 0:00:01]} Nc8 {[%emt 0:00:21]}
23. a6 {[%emt 0:00:10]} bxa6 {[%emt 0:00:02]} 24. Bc4 {[%emt 0:00:23]} Qb6 {
[%emt 0:00:14]} 25. Re3 {[%emt 0:00:08]} a5 {[%emt 0:00:02]} 26. g3 {[%emt 0:
00:17]} h4 {[%emt 0:00:03]} 27. Bf1 {[%emt 0:00:02]} h3 {[%emt 0:00:05]} 28.
Rec3 {[%emt 0:00:11]} Bd6 {[%emt 0:00:07]} 29. Rb3 {[%emt 0:00:01]} Bb4 {[%emt
0:00:02]} 30. Rc6 {[%emt 0:00:18]} Qd4 {[%emt 0:00:24]} 31. Qe2 {[%emt 0:00:04]
} Nb6 {[%emt 0:00:10]} 32. Rf3 {[%emt 0:00:04]} Qe4 {[%emt 0:00:02]} 33. Qb5 {
[%emt 0:00:23]} Qxf3 {[%emt 0:00:07]} 34. Be2 {[%emt 0:00:02]} Qg2# {[%emt 0:
00:02] (Lag: Av=0.24s, max=0.5s)} 0-1

[Event "Dutch Internet Championship Final"]
[Site "playchess.com #038132"]
[Date "2011.06.18"]
[Round "1.2"]
[White "Kemps"]
[Black "Christov"]
[Result "1/2-1/2"]
[ECO "B67"]
[WhiteElo "2389"]
[BlackElo "2482"]
[PlyCount "96"]
[EventDate "2011.06.18"]
[EventType "match (blitz)"]
[TimeControl "180+3"]

1. e4 {[%emt 0:00:02]} c5 {[%emt 0:00:01]} 2. Nf3 {[%emt 0:00:01]} d6 {[%emt 0:
00:01]} 3. d4 {[%emt 0:00:01]} cxd4 {[%emt 0:00:01]} 4. Nxd4 {[%emt 0:00:00]}
Nf6 {[%emt 0:00:01]} 5. Nc3 {[%emt 0:00:01]} a6 {[%emt 0:00:01]} 6. Bg5 {[%emt
0:00:03]} e6 {[%emt 0:00:01]} 7. f4 {[%emt 0:00:02]} Qc7 {[%emt 0:00:01]} 8.
Bxf6 {[%emt 0:00:02]} gxf6 {[%emt 0:00:01]} 9. Qd2 {[%emt 0:00:01]} Nc6 {[%emt
0:00:02]} 10. O-O-O {[%emt 0:00:01]} Bd7 {[%emt 0:00:01]} 11. Kb1 {[%emt 0:00:
02]} h5 {[%emt 0:00:05]} 12. Bc4 {[%emt 0:00:04]} Nxd4 {[%emt 0:00:11]} 13.
Qxd4 {[%emt 0:00:01]} Be7 {[%emt 0:00:00]} 14. Bb3 {[%emt 0:00:02]} b5 {[%emt
0:00:11]} 15. Rhf1 {[%emt 0:00:05]} Rc8 {[%emt 0:00:29]} 16. f5 {[%emt 0:00:04]
} Qc5 {[%emt 0:00:02]} 17. Qd3 {[%emt 0:00:01]} b4 {[%emt 0:00:08]} 18. Ne2 {
[%emt 0:00:04]} a5 {[%emt 0:00:06]} 19. fxe6 {[%emt 0:00:09]} fxe6 {[%emt 0:00:
01]} 20. Nf4 {[%emt 0:00:01]} Bb5 {[%emt 0:00:10]} 21. Qg3 {[%emt 0:00:11]} Qg5
{[%emt 0:00:11]} 22. Rf3 {[%emt 0:00:20]} Qxg3 {[%emt 0:00:14]} 23. Rxg3 {
[%emt 0:00:04]} e5 {[%emt 0:00:08]} 24. Ne6 {[%emt 0:00:30]} a4 {[%emt 0:00:34]
} 25. Bd5 {[%emt 0:00:02]} Bc4 {[%emt 0:00:04]} 26. Ng7+ {[%emt 0:00:17]} Kd7 {
[%emt 0:00:13]} 27. Nf5 {[%emt 0:00:07]} Bxd5 {[%emt 0:00:01]} 28. Rxd5 {[%emt
0:00:08]} Rcg8 {[%emt 0:00:05]} 29. Ra5 {[%emt 0:00:11]} Bd8 {[%emt 0:00:16]}
30. Rxa4 {[%emt 0:00:06]} h4 {[%emt 0:00:05]} 31. Nxh4 {[%emt 0:00:26]} Rxg3 {
[%emt 0:00:17]} 32. hxg3 {[%emt 0:00:02]} f5 {[%emt 0:00:05]} 33. exf5 {[%emt
0:00:20]} Bxh4 {[%emt 0:00:02]} 34. gxh4 {[%emt 0:00:01]} Rxh4 {[%emt 0:00:00]}
35. a3 {[%emt 0:00:18]} Rh1+ {[%emt 0:00:02]} 36. Ka2 {[%emt 0:00:01]} bxa3 {
[%emt 0:00:01]} 37. Rxa3 {[%emt 0:00:03]} e4 {[%emt 0:00:03]} 38. Re3 {[%emt 0:
00:02]} d5 {[%emt 0:00:02]} 39. Kb3 {[%emt 0:00:12]} Rf1 {[%emt 0:00:07]} 40.
Kc3 {[%emt 0:00:11]} Kd6 {[%emt 0:00:04]} 41. Kd2 {[%emt 0:00:29]} Ke5 {[%emt
0:00:01]} 42. c3 {[%emt 0:00:01]} Rf2+ {[%emt 0:00:04]} 43. Re2 {[%emt 0:00:01]
} Rxf5 {[%emt 0:00:01]} 44. Ke3 {[%emt 0:00:07]} Rg5 {[%emt 0:00:04]} 45. Kd2 {
[%emt 0:00:08]} d4 {[%emt 0:00:12] Christov doet een remise aanbod} 46. cxd4+ {
[%emt 0:00:03]} Kxd4 {[%emt 0:00:01]} 47. Ke1 {[%emt 0:00:06]} e3 {[%emt 0:00:
02]} 48. Rc2 {[%emt 0:00:03]} Kd3 {[%emt 0:00:01] Kemps offers a draw  (Lag:
Av=0.25s, max=0.6s)} 1/2-1/2

[Event "Dutch Internet Championship Final"]
[Site "playchess.com #038132"]
[Date "2011.06.18"]
[Round "1.2"]
[White "Jack Snipe"]
[Black "Rossetis"]
[Result "0-1"]
[ECO "C54"]
[WhiteElo "2458"]
[BlackElo "2474"]
[PlyCount "80"]
[EventDate "2011.06.18"]
[EventType "match (blitz)"]
[TimeControl "180+3"]

1. e4 {[%emt 0:00:01]} e5 {[%emt 0:00:01]} 2. Nf3 {[%emt 0:00:01]} Nc6 {[%emt
0:00:01]} 3. Bc4 {[%emt 0:00:01]} Bc5 {[%emt 0:00:04]} 4. O-O {[%emt 0:00:03]}
Nf6 {[%emt 0:00:03]} 5. d3 {[%emt 0:00:02]} O-O {[%emt 0:00:02]} 6. c3 {[%emt
0:00:04]} a6 {[%emt 0:00:06]} 7. Bb3 {[%emt 0:00:05]} Ba7 {[%emt 0:00:02]} 8.
Nbd2 {[%emt 0:00:02]} h6 {[%emt 0:00:04]} 9. Nc4 {[%emt 0:00:08]} d6 {[%emt 0:
00:02]} 10. Ne3 {[%emt 0:00:02]} Be6 {[%emt 0:00:09]} 11. Bc2 {[%emt 0:00:13]}
d5 {[%emt 0:00:08]} 12. Qe2 {[%emt 0:00:05]} Re8 {[%emt 0:00:11]} 13. Rd1 {
[%emt 0:00:06]} d4 {[%emt 0:00:06]} 14. Nf1 {[%emt 0:00:12]} Qe7 {[%emt 0:00:
19]} 15. Ng3 {[%emt 0:00:04]} Rad8 {[%emt 0:00:03]} 16. h3 {[%emt 0:00:12]} Nh7
{[%emt 0:00:06]} 17. Bd2 {[%emt 0:00:21]} b5 {[%emt 0:00:03]} 18. a4 {[%emt 0:
00:07]} dxc3 {[%emt 0:00:02]} 19. axb5 {[%emt 0:00:12]} cxb2 {[%emt 0:00:15]}
20. Rxa6 {[%emt 0:00:11]} Nd4 {[%emt 0:00:02]} 21. Nxd4 {[%emt 0:00:06]} Bxd4 {
[%emt 0:00:00]} 22. Nf5 {[%emt 0:00:14]} Bxf5 {[%emt 0:00:06]} 23. exf5 {[%emt
0:00:02]} Qc5 {[%emt 0:00:10]} 24. Rc6 {[%emt 0:00:25]} Qxb5 {[%emt 0:00:03]}
25. Rxc7 {[%emt 0:00:01]} Rc8 {[%emt 0:00:07]} 26. Rxc8 {[%emt 0:00:01]} Rxc8 {
[%emt 0:00:02]} 27. Bb1 {[%emt 0:00:09]} Nf6 {[%emt 0:00:02]} 28. g4 {[%emt 0:
00:15]} Nd5 {[%emt 0:00:09]} 29. Qf3 {[%emt 0:00:12]} Nc3 {[%emt 0:00:09]} 30.
Bxc3 {[%emt 0:00:05]} Rxc3 {[%emt 0:00:01]} 31. f6 {[%emt 0:00:05]} Rc1 {[%emt
0:00:17]} 32. Kg2 {[%emt 0:00:18]} gxf6 {[%emt 0:00:12]} 33. Rf1 {[%emt 0:00:
07]} Kg7 {[%emt 0:00:08]} 34. Qe2 {[%emt 0:00:06]} Qd5+ {[%emt 0:00:05]} 35.
Qe4 {[%emt 0:00:05]} Qc5 {[%emt 0:00:06]} 36. Qe2 {[%emt 0:00:02]} Qb6 {[%emt
0:00:13]} 37. Qd2 {[%emt 0:00:04]} Qc6+ {[%emt 0:00:05]} 38. f3 {[%emt 0:00:04]
} Rxf1 {[%emt 0:00:02]} 39. Kxf1 {[%emt 0:00:02]} Qc1+ {[%emt 0:00:01]} 40. Ke2
{[%emt 0:00:01]} Qxb1 {[%emt 0:00:01] Jack Snipe geeft op  (Lag: Av=0.18s,
max=0.6s)} 0-1

[Event "Dutch Internet Championship Final"]
[Site "playchess.com #038132"]
[Date "2011.06.18"]
[Round "1.2"]
[White "Daanbrandenburg"]
[Black "Enschede"]
[Result "1-0"]
[ECO "B22"]
[WhiteElo "2689"]
[BlackElo "2482"]
[PlyCount "61"]
[EventDate "2011.06.18"]
[EventType "match (blitz)"]
[TimeControl "180+3"]

1. e4 {[%emt 0:00:02]} c5 {[%emt 0:00:02]} 2. c3 {[%emt 0:00:01]} Nf6 {[%emt 0:
00:01]} 3. e5 {[%emt 0:00:00]} Nd5 {[%emt 0:00:00]} 4. Nf3 {[%emt 0:00:00]} g6
{[%emt 0:00:02]} 5. d4 {[%emt 0:00:01]} cxd4 {[%emt 0:00:00]} 6. Qxd4 {[%emt 0:
00:00]} Nc7 {[%emt 0:00:00]} 7. Qh4 {[%emt 0:00:03]} Nc6 {[%emt 0:00:01]} 8.
Bh6 {[%emt 0:00:02]} Bxh6 {[%emt 0:00:01]} 9. Qxh6 {[%emt 0:00:01]} d5 {[%emt
0:00:00]} 10. Nbd2 {[%emt 0:00:31]} Bf5 {[%emt 0:00:01]} 11. Be2 {[%emt 0:00:
19]} Qd7 {[%emt 0:00:02]} 12. O-O {[%emt 0:00:03]} O-O-O {[%emt 0:00:04]} 13.
Rfe1 {[%emt 0:00:02]} Ne6 {[%emt 0:00:20]} 14. Nb3 {[%emt 0:00:13]} Qc7 {[%emt
0:00:04]} 15. Bb5 {[%emt 0:00:09]} Be4 {[%emt 0:00:04]} 16. Bxc6 {[%emt 0:00:
03]} bxc6 {[%emt 0:00:04]} 17. Ng5 {[%emt 0:00:10]} Nxg5 {[%emt 0:00:12]} 18.
Qxg5 {[%emt 0:00:00]} c5 {[%emt 0:00:15]} 19. Qe3 {[%emt 0:00:02]} c4 {[%emt 0:
00:21]} 20. Nc5 {[%emt 0:00:01]} Qxe5 {[%emt 0:00:09]} 21. f3 {[%emt 0:00:17]}
f5 {[%emt 0:00:11]} 22. fxe4 {[%emt 0:00:05]} dxe4 {[%emt 0:00:04]} 23. Rad1 {
[%emt 0:00:02]} Rd6 {[%emt 0:00:04]} 24. Rxd6 {[%emt 0:00:41]} exd6 {[%emt 0:
00:00]} 25. Na6 {[%emt 0:00:02]} Kb7 {[%emt 0:00:13]} 26. Nb4 {[%emt 0:00:01]}
Re8 {[%emt 0:00:14]} 27. Rd1 {[%emt 0:00:20]} f4 {[%emt 0:00:10]} 28. Qd4 {
[%emt 0:00:01]} e3 {[%emt 0:00:05]} 29. Qxc4 {[%emt 0:00:09]} e2 {[%emt 0:00:
08]} 30. Qc6+ {[%emt 0:00:02]} Kb8 {[%emt 0:00:02]} 31. Na6# {[%emt 0:00:00] 
(Lag: Av=0.19s, max=0.5s)} 1-0